[Event "Titled Tuesday Blitz November 07 Early 2023"]
[White "Nasuta, Grzegorz"]
[Black "Shukhman, Anna"]
[WhiteFideId "1141686"]
[BlackFideId "54180058"]
[WhiteElo "2672"]
[BlackElo "2533"]
[Result "0-1"]
[Round "9"]
[TimeControl "180+1"]
[Date "2023.11.07"]
[WhiteClock "0:00:01"]
[BlackClock "0:00:50"]
[Board "68"]

1. e4 {[%clk 0:03:00]}  c5 {[%clk 0:02:59]} 2. Nf3 {[%clk 0:02:57]}  a6 {[%clk 0:02:59]} 3. c4 {[%clk 0:02:53]}  Nc6 {[%clk 0:02:58]} 4. d4 {[%clk 0:02:49]}  cxd4 {[%clk 0:02:57]} 5. Nxd4 {[%clk 0:02:50]}  e5 {[%clk 0:02:57]} 6. Nc2 {[%clk 0:02:39]}  Nf6 {[%clk 0:02:53]} 7. Nc3 {[%clk 0:02:39]}  Bc5 {[%clk 0:02:52]} 8. Be3 {[%clk 0:02:38]}  d6 {[%clk 0:02:43]} 9. Bxc5 {[%clk 0:02:19]}  dxc5 {[%clk 0:02:44]} 10. Qxd8+ {[%clk 0:02:19]}  Nxd8 {[%clk 0:02:42]} 11. Nd5 {[%clk 0:02:11]}  Ne6 {[%clk 0:02:37]} 12. Nb6 {[%clk 0:01:54]}  Rb8 {[%clk 0:02:36]} 13. f3 {[%clk 0:01:48]}  O-O {[%clk 0:02:33]} 14. O-O-O {[%clk 0:01:47]}  Nd4 {[%clk 0:02:21]} 15. Nxd4 {[%clk 0:01:33]}  cxd4 {[%clk 0:02:20]} 16. c5 {[%clk 0:01:19]}  Be6 {[%clk 0:02:17]} 17. Kb1 {[%clk 0:01:17]}  Nd7 {[%clk 0:02:08]} 18. Nxd7 {[%clk 0:01:05]}  Bxd7 {[%clk 0:02:09]} 19. Bc4 {[%clk 0:01:04]}  Be6 {[%clk 0:01:54]} 20. Bxe6 {[%clk 0:01:01]}  fxe6 {[%clk 0:01:53]} 21. Rc1 {[%clk 0:01:02]}  Rbc8 {[%clk 0:01:47]} 22. Rc4 {[%clk 0:01:00]}  Rfd8 {[%clk 0:01:45]} 23. Rhc1 {[%clk 0:00:37]}  Kf7 {[%clk 0:01:44]} 24. b3 {[%clk 0:00:37]}  Rc6 {[%clk 0:01:40]} 25. Kc2 {[%clk 0:00:33]}  a5 {[%clk 0:01:29]} 26. Kd3 {[%clk 0:00:32]}  g5 {[%clk 0:01:28]} 27. R1c2 {[%clk 0:00:28]}  Rdc8 {[%clk 0:01:27]} 28. a3 {[%clk 0:00:21]}  h5 {[%clk 0:01:24]} 29. b4 {[%clk 0:00:17]}  axb4 {[%clk 0:01:23]} 30. axb4 {[%clk 0:00:18]}  Ra6 {[%clk 0:01:22]} 31. b5 {[%clk 0:00:18]}  Ra3+ {[%clk 0:01:21]} 32. Kd2 {[%clk 0:00:19]}  g4 {[%clk 0:01:19]} 33. fxg4 {[%clk 0:00:18]}  hxg4 {[%clk 0:01:20]} 34. c6 {[%clk 0:00:19]}  bxc6 {[%clk 0:01:20]} 35. bxc6 {[%clk 0:00:19]}  Rc7 {[%clk 0:01:18]} 36. Rb4 {[%clk 0:00:16]}  Ke7 {[%clk 0:01:17]} 37. Rb5 {[%clk 0:00:15]}  Kd6 {[%clk 0:01:17]} 38. Rb8 {[%clk 0:00:14]}  Rxc6 {[%clk 0:01:08]} 39. Rd8+ {[%clk 0:00:11]}  Kc7 {[%clk 0:01:08]} 40. Rg8 {[%clk 0:00:10]}  Rxc2+ {[%clk 0:01:08]} 41. Kxc2 {[%clk 0:00:11]}  Ra2+ {[%clk 0:01:09]} 42. Kd3 {[%clk 0:00:11]}  Rxg2 {[%clk 0:01:09]} 43. Kc4 {[%clk 0:00:10]}  Kd6 {[%clk 0:01:06]} 44. Rd8+ {[%clk 0:00:11]}  Ke7 {[%clk 0:01:05]} 45. Rg8 {[%clk 0:00:11]}  Kf7 {[%clk 0:01:05]} 46. Rg5 {[%clk 0:00:11]}  Kf6 {[%clk 0:01:05]} 47. Rg8 {[%clk 0:00:12]}  Ke7 {[%clk 0:01:00]} 48. Rg7+ {[%clk 0:00:11]}  Kd6 {[%clk 0:00:59]} 49. Rg8 {[%clk 0:00:11]}  Rc2+ {[%clk 0:00:59]} 50. Kd3 {[%clk 0:00:12]}  Rc3+ {[%clk 0:00:59]} 51. Kd2 {[%clk 0:00:12]}  Rh3 {[%clk 0:00:59]} 52. Rxg4 {[%clk 0:00:12]}  Rxh2+ {[%clk 0:00:59]} 53. Kd3 {[%clk 0:00:13]}  Kc5 {[%clk 0:00:59]} 54. Rg8 {[%clk 0:00:12]}  Rh3+ {[%clk 0:00:59]} 55. Kd2 {[%clk 0:00:13]}  Re3 {[%clk 0:00:57]} 56. Rc8+ {[%clk 0:00:07]}  Kd6 {[%clk 0:00:56]} 57. Rd8+ {[%clk 0:00:07]}  Ke7 {[%clk 0:00:56]} 58. Ra8 {[%clk 0:00:06]}  Rxe4 {[%clk 0:00:56]} 59. Ra5 {[%clk 0:00:06]}  Kf6 {[%clk 0:00:55]} 60. Ra8 {[%clk 0:00:06]}  Rh4 {[%clk 0:00:55]} 61. Kd3 {[%clk 0:00:05]}  Rh3+ {[%clk 0:00:52]} 62. Kd2 {[%clk 0:00:05]}  Kf5 {[%clk 0:00:51]} 63. Rg8 {[%clk 0:00:05]}  e4 {[%clk 0:00:50]} 64. Rd8 {[%clk 0:00:04]}  Rh2+ {[%clk 0:00:50]} 65. Kd1 {[%clk 0:00:03]}  d3 {[%clk 0:00:50]} 66. Rd7 {[%clk 0:00:03]}  Kf4 {[%clk 0:00:50]} 67. Rd8 {[%clk 0:00:01]}  Ke3 {[%clk 0:00:50]} 0-1


[Site "https://www.chess.com"]

[Event "Titled Tuesday Blitz November 07 Early 2023"]
[White "Manukyan, Sargis V."]
[Black "Arabidze, Meri"]
[WhiteFideId "13303465"]
[BlackFideId "13604040"]
[WhiteElo "2462"]
[BlackElo "2635"]
[Result "0-1"]
[Round "9"]
[TimeControl "180+1"]
[Date "2023.11.07"]
[WhiteClock "0:00:00"]
[BlackClock "0:00:14"]
[Board "72"]

1. d4 {[%clk 0:03:00]}  Nf6 {[%clk 0:02:59]} 2. Nc3 {[%clk 0:03:00]}  d5 {[%clk 0:02:56]} 3. Bf4 {[%clk 0:02:52]}  c6 {[%clk 0:02:56]} 4. Nf3 {[%clk 0:02:51]}  g6 {[%clk 0:02:55]} 5. e3 {[%clk 0:02:51]}  Bg7 {[%clk 0:02:55]} 6. Bd3 {[%clk 0:02:52]}  O-O {[%clk 0:02:51]} 7. O-O {[%clk 0:02:52]}  Bf5 {[%clk 0:02:50]} 8. Bxf5 {[%clk 0:02:52]}  gxf5 {[%clk 0:02:51]} 9. Ne5 {[%clk 0:02:52]}  Nbd7 {[%clk 0:02:48]} 10. Bg3 {[%clk 0:02:52]}  Kh8 {[%clk 0:02:37]} 11. h3 {[%clk 0:02:08]}  e6 {[%clk 0:02:28]} 12. Kh2 {[%clk 0:02:07]}  Qe8 {[%clk 0:02:20]} 13. f4 {[%clk 0:01:52]}  Rg8 {[%clk 0:02:15]} 14. Bh4 {[%clk 0:01:50]}  Nf8 {[%clk 0:01:52]} 15. g4 {[%clk 0:01:33]}  Ng6 {[%clk 0:01:38]} 16. Bg3 {[%clk 0:01:19]}  Ne4 {[%clk 0:01:38]} 17. Nxe4 {[%clk 0:01:18]}  dxe4 {[%clk 0:01:37]} 18. gxf5 {[%clk 0:01:19]}  exf5 {[%clk 0:01:36]} 19. Qh5 {[%clk 0:01:19]}  Qe6 {[%clk 0:01:32]} 20. Rg1 {[%clk 0:01:17]}  Rgc8 {[%clk 0:01:19]} 21. c3 {[%clk 0:00:32]}  c5 {[%clk 0:01:17]} 22. Rac1 {[%clk 0:00:23]}  cxd4 {[%clk 0:01:05]} 23. cxd4 {[%clk 0:00:24]}  Qxa2 {[%clk 0:01:04]} 24. Rxc8+ {[%clk 0:00:18]}  Rxc8 {[%clk 0:01:05]} 25. Qxf5 {[%clk 0:00:18]}  Qxb2+ {[%clk 0:00:48]} 26. Kh1 {[%clk 0:00:14]}  Rf8 {[%clk 0:00:39]} 27. Qxe4 {[%clk 0:00:14]}  f5 {[%clk 0:00:27]} 28. Qd5 {[%clk 0:00:12]}  Nxe5 {[%clk 0:00:21]} 29. fxe5 {[%clk 0:00:13]}  Qe2 {[%clk 0:00:20]} 30. Qg2 {[%clk 0:00:09]}  Qxg2+ {[%clk 0:00:20]} 31. Rxg2 {[%clk 0:00:10]}  Re8 {[%clk 0:00:19]} 32. Rc2 {[%clk 0:00:10]}  a5 {[%clk 0:00:19]} 33. Rc7 {[%clk 0:00:11]}  a4 {[%clk 0:00:19]} 34. Rxb7 {[%clk 0:00:10]}  Ra8 {[%clk 0:00:19]} 35. Rb2 {[%clk 0:00:10]}  a3 {[%clk 0:00:19]} 36. Ra2 {[%clk 0:00:10]}  Ra5 {[%clk 0:00:18]} 37. Kg2 {[%clk 0:00:11]}  Kg8 {[%clk 0:00:18]} 38. Kf2 {[%clk 0:00:11]}  Kf7 {[%clk 0:00:18]} 39. Ke2 {[%clk 0:00:11]}  Ke6 {[%clk 0:00:18]} 40. Kd3 {[%clk 0:00:12]}  Kd5 {[%clk 0:00:18]} 41. Kc3 {[%clk 0:00:12]}  Bf8 {[%clk 0:00:14]} 42. Kd3 {[%clk 0:00:07]}  Rb5 {[%clk 0:00:14]} 43. Be1 {[%clk 0:00:06]}  Rb3+ {[%clk 0:00:13]} 44. Ke2 {[%clk 0:00:05]}  Rb2+ {[%clk 0:00:13]} 45. Rxb2 {[%clk 0:00:01]}  axb2 {[%clk 0:00:14]} 46. Bd2 {[%clk 0:00:01]}  b1=Q {[%clk 0:00:14]} 47. e6 {[%clk 0:00:02]}  Kxe6 {[%clk 0:00:14]} 48. e4 {[%clk 0:00:02]}  Qxe4+ {[%clk 0:00:14]} 49. Kd1 {[%clk 0:00:00]}  Kd5 {[%clk 0:00:14]} 0-1


[Site "https://www.chess.com"]

[Event "Titled Tuesday Blitz November 07 Early 2023"]
[White "Kvaloy, Aksel Bu"]
[Black "Tsotsonava, Elene"]
[WhiteFideId "1528815"]
[BlackFideId "13615939"]
[WhiteElo "2631"]
[BlackElo "2428"]
[Result "1/2-1/2"]
[Round "9"]
[TimeControl "180+1"]
[Date "2023.11.07"]
[WhiteClock "0:00:10"]
[BlackClock "0:00:17"]
[Board "73"]

1. d4 {[%clk 0:03:00]}  Nf6 {[%clk 0:02:59]} 2. Nf3 {[%clk 0:03:00]}  e6 {[%clk 0:02:58]} 3. Bg5 {[%clk 0:02:59]}  d5 {[%clk 0:02:58]} 4. Nbd2 {[%clk 0:02:56]}  Be7 {[%clk 0:02:58]} 5. e3 {[%clk 0:02:53]}  h6 {[%clk 0:02:58]} 6. Bh4 {[%clk 0:02:52]}  c5 {[%clk 0:02:58]} 7. c3 {[%clk 0:02:51]}  O-O {[%clk 0:02:58]} 8. Bd3 {[%clk 0:02:51]}  b6 {[%clk 0:02:56]} 9. Qe2 {[%clk 0:02:49]}  Bb7 {[%clk 0:02:56]} 10. O-O {[%clk 0:02:38]}  Ne4 {[%clk 0:02:51]} 11. Bxe7 {[%clk 0:02:38]}  Qxe7 {[%clk 0:02:51]} 12. Ne5 {[%clk 0:02:32]}  Nd7 {[%clk 0:02:29]} 13. Nxd7 {[%clk 0:02:25]}  Qxd7 {[%clk 0:02:29]} 14. f3 {[%clk 0:02:25]}  Nxd2 {[%clk 0:02:26]} 15. Qxd2 {[%clk 0:02:26]}  Qc7 {[%clk 0:02:27]} 16. Qe2 {[%clk 0:02:21]}  e5 {[%clk 0:02:24]} 17. f4 {[%clk 0:02:17]}  e4 {[%clk 0:02:16]} 18. Bc2 {[%clk 0:02:11]}  a5 {[%clk 0:02:16]} 19. Ba4 {[%clk 0:02:09]}  Ba6 {[%clk 0:02:11]} 20. Bb5 {[%clk 0:02:08]}  c4 {[%clk 0:02:11]} 21. Bxa6 {[%clk 0:02:07]}  Rxa6 {[%clk 0:02:12]} 22. b3 {[%clk 0:01:57]}  Rc8 {[%clk 0:02:08]} 23. a3 {[%clk 0:01:52]}  Ra7 {[%clk 0:01:54]} 24. b4 {[%clk 0:01:48]}  axb4 {[%clk 0:01:48]} 25. axb4 {[%clk 0:01:46]}  Rca8 {[%clk 0:01:49]} 26. Qb2 {[%clk 0:01:44]}  b5 {[%clk 0:01:48]} 27. h3 {[%clk 0:01:19]}  Ra4 {[%clk 0:01:45]} 28. Rxa4 {[%clk 0:01:18]}  Rxa4 {[%clk 0:01:46]} 29. Ra1 {[%clk 0:01:16]}  Qa7 {[%clk 0:01:45]} 30. Rxa4 {[%clk 0:01:16]}  Qxa4 {[%clk 0:01:46]} 31. Qd2 {[%clk 0:01:13]}  Qa1+ {[%clk 0:01:37]} 32. Kf2 {[%clk 0:01:12]}  g6 {[%clk 0:01:36]} 33. Qc2 {[%clk 0:01:08]}  Kg7 {[%clk 0:01:35]} 34. Qd2 {[%clk 0:01:08]}  f5 {[%clk 0:01:34]} 35. Kg3 {[%clk 0:01:03]}  Kf6 {[%clk 0:01:34]} 36. Kh2 {[%clk 0:01:01]}  g5 {[%clk 0:01:33]} 37. g3 {[%clk 0:01:00]}  Qb1 {[%clk 0:01:29]} 38. Qf2 {[%clk 0:00:43]}  g4 {[%clk 0:01:05]} 39. hxg4 {[%clk 0:00:36]}  fxg4 {[%clk 0:01:06]} 40. Qd2 {[%clk 0:00:34]}  Kf5 {[%clk 0:01:04]} 41. Kg2 {[%clk 0:00:33]}  h5 {[%clk 0:01:02]} 42. Kh2 {[%clk 0:00:32]}  Qd3 {[%clk 0:01:01]} 43. Qe1 {[%clk 0:00:28]}  Qc2+ {[%clk 0:01:01]} 44. Kg1 {[%clk 0:00:27]}  Kg6 {[%clk 0:00:54]} 45. Kh1 {[%clk 0:00:26]}  Qb2 {[%clk 0:00:50]} 46. Kg1 {[%clk 0:00:21]}  Kf5 {[%clk 0:00:38]} 47. Kh1 {[%clk 0:00:20]}  Qc2 {[%clk 0:00:34]} 48. Kg1 {[%clk 0:00:20]}  Qa4 {[%clk 0:00:33]} 49. Kh1 {[%clk 0:00:20]}  Qa8 {[%clk 0:00:32]} 50. Kg1 {[%clk 0:00:17]}  Qa2 {[%clk 0:00:27]} 51. Kh1 {[%clk 0:00:17]}  Qb2 {[%clk 0:00:26]} 52. Kg1 {[%clk 0:00:17]}  Kf6 {[%clk 0:00:23]} 53. Kh1 {[%clk 0:00:17]}  Kg6 {[%clk 0:00:22]} 54. Kg1 {[%clk 0:00:16]}  Kf5 {[%clk 0:00:20]} 55. Kh1 {[%clk 0:00:16]}  Qa3 {[%clk 0:00:19]} 56. Qd2 {[%clk 0:00:11]}  Qa1+ {[%clk 0:00:18]} 57. Kg2 {[%clk 0:00:12]}  Qa3 {[%clk 0:00:17]} 58. Qe1 {[%clk 0:00:11]}  Qb2+ {[%clk 0:00:17]} 59. Kh1 {[%clk 0:00:10]} 1/2-1/2


[Site "https://www.chess.com"]

[Event "Titled Tuesday Blitz November 07 Early 2023"]
[White "vishwa_vijeta"]
[Black "Dishman, Stephen"]
[BlackFideId "403024"]
[WhiteElo "2493"]
[BlackElo "2389"]
[Result "1-0"]
[Round "9"]
[TimeControl "180+1"]
[Date "2023.11.07"]
[WhiteClock "0:00:31"]
[BlackClock "0:00:11"]
[Board "74"]

1. e4 {[%clk 0:02:57]}  c5 {[%clk 0:02:59]} 2. Nf3 {[%clk 0:02:56]}  g6 {[%clk 0:02:59]} 3. d4 {[%clk 0:02:55]}  cxd4 {[%clk 0:03:00]} 4. Nxd4 {[%clk 0:02:56]}  Nc6 {[%clk 0:03:00]} 5. c4 {[%clk 0:02:53]}  Nf6 {[%clk 0:03:00]} 6. Nc3 {[%clk 0:02:53]}  d6 {[%clk 0:03:00]} 7. Be2 {[%clk 0:02:53]}  Nxd4 {[%clk 0:02:59]} 8. Qxd4 {[%clk 0:02:52]}  Bg7 {[%clk 0:03:00]} 9. O-O {[%clk 0:02:47]}  O-O {[%clk 0:02:57]} 10. Qd1 {[%clk 0:02:46]}  a5 {[%clk 0:02:46]} 11. Be3 {[%clk 0:02:39]}  a4 {[%clk 0:02:40]} 12. Nxa4 {[%clk 0:02:23]}  Nxe4 {[%clk 0:02:35]} 13. Nb6 {[%clk 0:02:20]}  Ra5 {[%clk 0:02:27]} 14. Nxc8 {[%clk 0:02:16]}  Qxc8 {[%clk 0:02:24]} 15. Bd4 {[%clk 0:02:15]}  Qa8 {[%clk 0:02:01]} 16. Bxg7 {[%clk 0:01:56]}  Kxg7 {[%clk 0:02:02]} 17. Qd4+ {[%clk 0:01:56]}  Nf6 {[%clk 0:02:02]} 18. a3 {[%clk 0:01:55]}  Qa7 {[%clk 0:01:48]} 19. Qc3 {[%clk 0:01:52]}  Rc8 {[%clk 0:01:40]} 20. b4 {[%clk 0:01:48]}  Re5 {[%clk 0:01:24]} 21. Bf3 {[%clk 0:01:46]}  b5 {[%clk 0:01:21]} 22. c5 {[%clk 0:01:46]}  Rf5 {[%clk 0:01:16]} 23. g4 {[%clk 0:01:45]}  Re5 {[%clk 0:01:10]} 24. Rfe1 {[%clk 0:01:39]}  Rxe1+ {[%clk 0:01:04]} 25. Rxe1 {[%clk 0:01:38]}  h6 {[%clk 0:01:00]} 26. h4 {[%clk 0:01:25]}  Kg8 {[%clk 0:01:00]} 27. g5 {[%clk 0:01:17]}  hxg5 {[%clk 0:00:59]} 28. hxg5 {[%clk 0:01:17]}  Nh7 {[%clk 0:00:57]} 29. Bg4 {[%clk 0:01:02]}  e6 {[%clk 0:00:52]} 30. Rxe6 {[%clk 0:00:56]}  Nxg5 {[%clk 0:00:41]} 31. Rxg6+ {[%clk 0:00:37]}  fxg6 {[%clk 0:00:40]} 32. Bxc8 {[%clk 0:00:38]}  Nf3+ {[%clk 0:00:26]} 33. Qxf3 {[%clk 0:00:37]}  dxc5 {[%clk 0:00:24]} 34. Be6+ {[%clk 0:00:33]}  Kg7 {[%clk 0:00:24]} 35. Qc3+ {[%clk 0:00:33]}  Kh6 {[%clk 0:00:21]} 36. Qxc5 {[%clk 0:00:32]}  Qxa3 {[%clk 0:00:20]} 37. Qf8+ {[%clk 0:00:32]}  Kg5 {[%clk 0:00:20]} 38. f4+ {[%clk 0:00:32]}  Kh4 {[%clk 0:00:15]} 39. Qh6+ {[%clk 0:00:30]}  Kg3 {[%clk 0:00:11]} 40. Qh3+ {[%clk 0:00:31]} 1-0


[Site "https://www.chess.com"]

[Event "Titled Tuesday Blitz November 07 Early 2023"]
[White "Santos Flores, Alberto"]
[Black "BardArtem"]
[WhiteFideId "3601234"]
[WhiteElo "2505"]
[BlackElo "2782"]
[Result "1-0"]
[Round "9"]
[TimeControl "180+1"]
[Date "2023.11.07"]
[WhiteClock "0:01:27"]
[BlackClock "0:00:00"]
[Board "76"]

1. e4 {[%clk 0:02:48]}  e5 {[%clk 0:02:56]} 2. Nf3 {[%clk 0:02:48]}  Nc6 {[%clk 0:02:56]} 3. Bc4 {[%clk 0:02:47]}  Bc5 {[%clk 0:02:50]} 4. O-O {[%clk 0:02:47]}  Nf6 {[%clk 0:02:48]} 5. d4 {[%clk 0:02:47]}  Bxd4 {[%clk 0:02:38]} 6. Nxd4 {[%clk 0:02:47]}  Nxd4 {[%clk 0:02:39]} 7. Bg5 {[%clk 0:02:47]}  O-O {[%clk 0:02:34]} 8. f4 {[%clk 0:02:47]}  Nc6 {[%clk 0:01:51]} 9. Nc3 {[%clk 0:02:34]}  h6 {[%clk 0:01:16]} 10. Bh4 {[%clk 0:02:30]}  exf4 {[%clk 0:01:13]} 11. Rxf4 {[%clk 0:01:51]}  g5 {[%clk 0:01:11]} 12. Nd5 {[%clk 0:01:50]}  Nxd5 {[%clk 0:00:58]} 13. Bxd5 {[%clk 0:01:50]}  gxh4 {[%clk 0:00:25]} 14. Qh5 {[%clk 0:01:49]}  Qg5 {[%clk 0:00:05]} 15. Rg4 {[%clk 0:01:49]}  Qg7 {[%clk 0:00:05]} 16. Rxg7+ {[%clk 0:01:45]}  Kxg7 {[%clk 0:00:06]} 17. Rf1 {[%clk 0:01:45]}  Nd8 {[%clk 0:00:04]} 18. Qxh4 {[%clk 0:01:41]}  d6 {[%clk 0:00:04]} 19. Qf6+ {[%clk 0:01:41]}  Kh7 {[%clk 0:00:04]} 20. e5 {[%clk 0:01:38]}  Be6 {[%clk 0:00:04]} 21. Be4+ {[%clk 0:01:38]}  Kg8 {[%clk 0:00:04]} 22. Qxh6 {[%clk 0:01:37]}  f5 {[%clk 0:00:03]} 23. exf6 {[%clk 0:01:36]}  Rf7 {[%clk 0:00:03]} 24. Rf3 {[%clk 0:01:27]}  d5 {[%clk 0:00:00]} 25. Rg3+ {[%clk 0:01:27]} 1-0


[Site "https://www.chess.com"]

[Event "Titled Tuesday Blitz November 07 Early 2023"]
[White "Hayrapetyan, Hovik"]
[Black "Lehtosaari, Mauri"]
[WhiteFideId "13302639"]
[BlackFideId "501999"]
[WhiteElo "2752"]
[BlackElo "2497"]
[Result "1-0"]
[Round "9"]
[TimeControl "180+1"]
[Date "2023.11.07"]
[WhiteClock "0:00:15"]
[BlackClock "0:00:01"]
[Board "77"]

1. d4 {[%clk 0:02:58]}  d5 {[%clk 0:02:59]} 2. c4 {[%clk 0:02:55]}  c6 {[%clk 0:03:00]} 3. Nf3 {[%clk 0:02:55]}  Nf6 {[%clk 0:03:00]} 4. Nc3 {[%clk 0:02:56]}  dxc4 {[%clk 0:02:59]} 5. a4 {[%clk 0:02:56]}  Bf5 {[%clk 0:02:58]} 6. e3 {[%clk 0:02:56]}  e6 {[%clk 0:02:58]} 7. Bxc4 {[%clk 0:02:53]}  Bb4 {[%clk 0:02:57]} 8. O-O {[%clk 0:02:45]}  O-O {[%clk 0:02:57]} 9. Qe2 {[%clk 0:02:42]}  Bg6 {[%clk 0:02:56]} 10. Ne5 {[%clk 0:02:16]}  Nbd7 {[%clk 0:02:49]} 11. Nxg6 {[%clk 0:02:16]}  hxg6 {[%clk 0:02:50]} 12. Rd1 {[%clk 0:02:13]}  Qa5 {[%clk 0:02:31]} 13. e4 {[%clk 0:02:13]}  e5 {[%clk 0:02:31]} 14. dxe5 {[%clk 0:01:55]}  Nxe5 {[%clk 0:02:23]} 15. Bb3 {[%clk 0:01:55]}  Rad8 {[%clk 0:02:15]} 16. Bf4 {[%clk 0:01:45]}  Nh5 {[%clk 0:02:02]} 17. Be3 {[%clk 0:01:40]}  Nf6 {[%clk 0:01:37]} 18. Bd4 {[%clk 0:01:08]}  Rfe8 {[%clk 0:00:52]} 19. h3 {[%clk 0:00:52]}  Nh5 {[%clk 0:00:48]} 20. Qe3 {[%clk 0:00:42]}  b6 {[%clk 0:00:25]} 21. Na2 {[%clk 0:00:36]}  Bd6 {[%clk 0:00:20]} 22. Bc3 {[%clk 0:00:34]}  Qa6 {[%clk 0:00:18]} 23. Nb4 {[%clk 0:00:31]}  Qb7 {[%clk 0:00:16]} 24. Nd3 {[%clk 0:00:16]}  Nxd3 {[%clk 0:00:13]} 25. Rxd3 {[%clk 0:00:17]}  Qc7 {[%clk 0:00:12]} 26. Rad1 {[%clk 0:00:16]}  Bc5 {[%clk 0:00:09]} 27. Qf3 {[%clk 0:00:13]}  Rxd3 {[%clk 0:00:09]} 28. Rxd3 {[%clk 0:00:14]}  Nf6 {[%clk 0:00:08]} 29. Bxf6 {[%clk 0:00:12]}  gxf6 {[%clk 0:00:08]} 30. Qxf6 {[%clk 0:00:13]}  Qe7 {[%clk 0:00:06]} 31. Qxg6+ {[%clk 0:00:13]}  Kf8 {[%clk 0:00:05]} 32. Qh6+ {[%clk 0:00:14]}  Kg8 {[%clk 0:00:01]} 33. Rg3+ {[%clk 0:00:15]} 1-0


[Site "https://www.chess.com"]

[Event "Titled Tuesday Blitz November 07 Early 2023"]
[White "Khater, Sherif"]
[Black "Harikrishnan.A.Ra"]
[WhiteFideId "2034280"]
[BlackFideId "5081483"]
[WhiteElo "2495"]
[BlackElo "2681"]
[Result "0-1"]
[Round "9"]
[TimeControl "180+1"]
[Date "2023.11.07"]
[WhiteClock "0:00:15"]
[BlackClock "0:00:30"]
[Board "79"]

1. d4 {[%clk 0:03:00]}  Nf6 {[%clk 0:02:58]} 2. Bg5 {[%clk 0:03:01]}  d5 {[%clk 0:02:55]} 3. Bxf6 {[%clk 0:03:00]}  gxf6 {[%clk 0:02:55]} 4. e3 {[%clk 0:03:01]}  c5 {[%clk 0:02:54]} 5. c4 {[%clk 0:02:59]}  cxd4 {[%clk 0:02:53]} 6. Qxd4 {[%clk 0:02:58]}  dxc4 {[%clk 0:02:48]} 7. Qxd8+ {[%clk 0:02:58]}  Kxd8 {[%clk 0:02:49]} 8. Bxc4 {[%clk 0:02:58]}  e6 {[%clk 0:02:47]} 9. Ne2 {[%clk 0:02:58]}  Bb4+ {[%clk 0:02:46]} 10. Nbc3 {[%clk 0:02:58]}  Ke7 {[%clk 0:02:46]} 11. O-O {[%clk 0:02:56]}  a6 {[%clk 0:02:43]} 12. Bd3 {[%clk 0:02:56]}  Nc6 {[%clk 0:02:39]} 13. Be4 {[%clk 0:02:55]}  Ne5 {[%clk 0:02:35]} 14. g3 {[%clk 0:02:44]}  Rb8 {[%clk 0:02:26]} 15. Rfd1 {[%clk 0:02:40]}  f5 {[%clk 0:02:16]} 16. Bg2 {[%clk 0:02:40]}  Bd7 {[%clk 0:02:10]} 17. Rac1 {[%clk 0:02:40]}  Rhc8 {[%clk 0:02:05]} 18. a3 {[%clk 0:02:39]}  Ba5 {[%clk 0:02:00]} 19. b4 {[%clk 0:02:34]}  Bb6 {[%clk 0:01:58]} 20. Nf4 {[%clk 0:02:29]}  Ba7 {[%clk 0:01:52]} 21. h3 {[%clk 0:01:50]}  Nc4 {[%clk 0:01:48]} 22. Rd3 {[%clk 0:01:30]}  Be8 {[%clk 0:01:32]} 23. Kh2 {[%clk 0:01:08]}  Kf8 {[%clk 0:01:30]} 24. Ra1 {[%clk 0:01:02]}  Nb2 {[%clk 0:01:28]} 25. Rd2 {[%clk 0:01:02]}  Rxc3 {[%clk 0:01:27]} 26. Rxb2 {[%clk 0:01:02]}  b5 {[%clk 0:01:23]} 27. Rd2 {[%clk 0:00:58]}  Bb6 {[%clk 0:01:09]} 28. h4 {[%clk 0:00:57]}  a5 {[%clk 0:01:08]} 29. Bf3 {[%clk 0:00:55]}  axb4 {[%clk 0:01:00]} 30. axb4 {[%clk 0:00:56]}  Rb3 {[%clk 0:00:59]} 31. Rda2 {[%clk 0:00:43]}  Rxb4 {[%clk 0:00:58]} 32. Ra8 {[%clk 0:00:44]}  Rxa8 {[%clk 0:00:54]} 33. Rxa8 {[%clk 0:00:44]}  Ke7 {[%clk 0:00:54]} 34. Rb8 {[%clk 0:00:42]}  Bc7 {[%clk 0:00:50]} 35. Rb7 {[%clk 0:00:42]}  Kd8 {[%clk 0:00:50]} 36. Ra7 {[%clk 0:00:41]}  Ra4 {[%clk 0:00:46]} 37. Rb7 {[%clk 0:00:32]}  Kc8 {[%clk 0:00:44]} 38. Nd3 {[%clk 0:00:33]}  Bd6 {[%clk 0:00:37]} 39. Rb6 {[%clk 0:00:24]}  Bc7 {[%clk 0:00:37]} 40. Rb7 {[%clk 0:00:22]}  Ra2 {[%clk 0:00:34]} 41. Nb4 {[%clk 0:00:18]}  Rxf2+ {[%clk 0:00:33]} 42. Bg2 {[%clk 0:00:15]}  Rxg2+ {[%clk 0:00:30]} 0-1


[Site "https://www.chess.com"]

[Event "Titled Tuesday Blitz November 07 Early 2023"]
[White "Gavrilov, Maxim"]
[Black "Czerw, Dawid"]
[WhiteFideId "24271454"]
[BlackFideId "1145746"]
[WhiteElo "2558"]
[BlackElo "2463"]
[Result "0-1"]
[Round "9"]
[TimeControl "180+1"]
[Date "2023.11.07"]
[WhiteClock "0:00:00"]
[BlackClock "0:00:06"]
[Board "84"]

1. d4 {[%clk 0:03:00]}  d5 {[%clk 0:02:59]} 2. c4 {[%clk 0:03:01]}  c6 {[%clk 0:02:59]} 3. Nc3 {[%clk 0:03:01]}  Nf6 {[%clk 0:03:00]} 4. e3 {[%clk 0:03:01]}  a6 {[%clk 0:02:59]} 5. Nf3 {[%clk 0:03:01]}  b5 {[%clk 0:02:59]} 6. b3 {[%clk 0:03:01]}  Bg4 {[%clk 0:02:58]} 7. Be2 {[%clk 0:03:01]}  e6 {[%clk 0:02:56]} 8. Bb2 {[%clk 0:03:01]}  Nbd7 {[%clk 0:02:56]} 9. h3 {[%clk 0:03:00]}  Bxf3 {[%clk 0:02:56]} 10. Bxf3 {[%clk 0:03:00]}  Be7 {[%clk 0:02:56]} 11. O-O {[%clk 0:03:00]}  O-O {[%clk 0:02:56]} 12. e4 {[%clk 0:03:01]}  b4 {[%clk 0:02:55]} 13. e5 {[%clk 0:02:29]}  bxc3 {[%clk 0:02:45]} 14. exf6 {[%clk 0:02:28]}  cxb2 {[%clk 0:02:27]} 15. fxe7 {[%clk 0:02:27]}  Qxe7 {[%clk 0:02:26]} 16. Rb1 {[%clk 0:02:26]}  Rab8 {[%clk 0:02:26]} 17. c5 {[%clk 0:02:20]}  e5 {[%clk 0:02:25]} 18. Re1 {[%clk 0:02:07]}  e4 {[%clk 0:02:25]} 19. Rxb2 {[%clk 0:02:04]}  f5 {[%clk 0:02:23]} 20. Be2 {[%clk 0:01:48]}  a5 {[%clk 0:02:15]} 21. Qd2 {[%clk 0:01:39]}  f4 {[%clk 0:02:12]} 22. Bf1 {[%clk 0:01:35]}  Qf6 {[%clk 0:02:04]} 23. Rc2 {[%clk 0:01:26]}  Rb4 {[%clk 0:02:01]} 24. Rd1 {[%clk 0:01:18]}  Qg6 {[%clk 0:01:57]} 25. Rc3 {[%clk 0:01:08]}  Nf6 {[%clk 0:01:50]} 26. Qxf4 {[%clk 0:00:53]}  Nh5 {[%clk 0:01:32]} 27. Qg4 {[%clk 0:00:51]}  Qf7 {[%clk 0:01:25]} 28. f3 {[%clk 0:00:47]}  Nf6 {[%clk 0:01:04]} 29. Qh4 {[%clk 0:00:44]}  Qg6 {[%clk 0:00:58]} 30. Be2 {[%clk 0:00:34]}  Nh5 {[%clk 0:00:47]} 31. fxe4 {[%clk 0:00:31]}  Nf4 {[%clk 0:00:46]} 32. Qg4 {[%clk 0:00:28]}  Qxe4 {[%clk 0:00:26]} 33. Bf3 {[%clk 0:00:27]}  Qe7 {[%clk 0:00:24]} 34. Kh2 {[%clk 0:00:24]}  h5 {[%clk 0:00:24]} 35. Qg3 {[%clk 0:00:20]}  Qf6 {[%clk 0:00:25]} 36. Qf2 {[%clk 0:00:18]}  Qg5 {[%clk 0:00:24]} 37. Re3 {[%clk 0:00:16]}  h4 {[%clk 0:00:20]} 38. Re5 {[%clk 0:00:15]}  Qf6 {[%clk 0:00:14]} 39. Qd2 {[%clk 0:00:13]}  Qg6 {[%clk 0:00:11]} 40. Rde1 {[%clk 0:00:13]}  Qg3+ {[%clk 0:00:11]} 41. Kh1 {[%clk 0:00:13]}  Nxh3 {[%clk 0:00:11]} 42. Rh5 {[%clk 0:00:09]}  Nf4 {[%clk 0:00:06]} 43. Qc2 {[%clk 0:00:09]}  Nxh5 {[%clk 0:00:06]} 44. Bxh5 {[%clk 0:00:08]}  Qxe1+ {[%clk 0:00:06]} 45. Kh2 {[%clk 0:00:00]}  Qg3+ {[%clk 0:00:06]} 0-1


[Site "https://www.chess.com"]